bitfinex/quotes_SOLUSD_20251208
["timestamp","ask_amount","ask_price","bid_price","bid_amount"]
[1765181321906,7.35911416,135.89,135.86,0.69]
[1765181322713,7.98911416,135.89,135.86,0.69]
[1765181323406,12.08963359,135.89,135.86,0.69]
[1765181326620,11.46022026,135.88,135.86,0.69]
[1765181326812,9.98234864,135.88,135.86,0.69]
[1765181327193,3.25264781,135.87,135.84,0.69]
[1765181327719,104.8,135.9,135.86,9.98310264]
[1765181327894,104.8,135.9,135.87,3.31264781]
[1765181328095,7.35797021,135.91,135.87,3.31264781]
[1765181328292,7.357481,135.92,135.89,2.62264781]
[1765181328513,7.3569103,135.93,135.89,2.62264781]
[1765181328823,7.3569103,135.93,135.9,0.69]
[1765181329322,7.9869103,135.93,135.9,0.69]
[1765181329740,10.60955811,135.93,135.9,0.69]
[1765181330020,7.9869103,135.93,135.9,0.69]
[1765181334741,3.25264781,135.92,135.88,0.72]
[1765181335904,10.61027767,135.92,135.88,0.72]
[1765181337211,9.98027767,135.92,135.88,0.72]
[1765181337802,10.61027767,135.92,135.88,0.72]
[1765181339328,3.25264781,135.91,135.88,0.72]
[1765181339521,3.25264781,135.91,135.87,0.67]
[1765181339905,2.62264781,135.91,135.87,0.67]
[1765181340111,3.25264781,135.91,135.87,0.67]
[1765181340615,7.35814978,135.91,135.87,0.67]
[1765181340813,10.61079759,135.91,135.87,8.02991144]
[1765181341015,7.98814978,135.91,135.87,8.02991144]
[1765181341217,7.98814978,135.91,135.88,0.67]
[1765181341412,10.61079759,135.91,135.88,0.67]
[1765181342237,9.98079759,135.91,135.88,0.67]
[1765181342441,7.35814978,135.91,135.88,0.67]
[1765181342810,9.98079759,135.91,135.88,0.67]
[1765181343029,104.8,135.94,135.9,2.62264781]
[1765181343506,104.8,135.94,135.91,0.67]
[1765181344040,112.15636296,135.94,135.91,0.67]
[1765181345557,112.78636296,135.94,135.91,0.67]
[1765181346717,112.15636296,135.94,135.9,8.02826293]
[1765181347039,115.40901077,135.94,135.9,8.02826293]
[1765181347345,3.25264781,135.93,135.88,26.96060229]
[1765181347512,3.25264781,135.93,135.89,0.67]
[1765181350738,7.35726898,135.92,135.89,0.67]
[1765181351414,7.98726898,135.92,135.89,0.67]
[1765181352333,7.35726898,135.92,135.89,0.67]
[1765181353141,0.63,135.92,135.89,0.67]
[1765181354643,3.25264781,135.92,135.88,0.67]
[1765181354943,3.25264781,135.92,135.87,0.67]
[1765181355330,7.35781031,135.91,135.87,0.67]
[1765181356753,7.35781031,135.91,135.87,10.65255082]
[1765181356951,7.35781031,135.91,135.88,2.62264781]
[1765181357146,7.35781031,135.91,135.88,3.29264781]
[1765181357446,7.35726898,135.92,135.89,0.67]
[1765181357650,7.98726898,135.92,135.89,0.67]
[1765181357951,7.35726898,135.92,135.89,0.67]
[1765181358135,2.62264781,135.91,135.89,0.67]
[1765181358334,7.35629538,135.94,135.9,2.62264781]
[1765181358531,7.35629538,135.94,135.89,0.67]
[1765181358532,3.25264781,135.97,135.91,2.62264781]
[1765181358730,0.63,135.96,135.91,2.62264781]
[1765181358952,0.63,135.96,135.92,0.67]
[1765181359252,25.74142165,135.97,135.92,3.29264781]
[1765181359452,26.37142165,135.97,135.92,3.29264781]
[1765181359653,26.37142165,135.97,135.93,0.67]
[1765181360452,28.99406946,135.97,135.93,0.67]
[1765181362330,28.36406946,135.97,135.91,9.98020933]
[1765181362651,28.36406946,135.97,135.89,0.72]
[1765181362652,2.62264781,135.92,135.89,0.72]
[1765181363660,9.98003447,135.92,135.89,0.72]
[1765181366353,2.62264781,135.91,135.89,0.72]
[1765181368064,9.98048493,135.91,135.89,0.72]
[1765181371158,2.62264781,135.9,135.89,0.72]
[1765181373568,9.98099953,135.9,135.88,0.72]
[1765181373732,9.98099953,135.9,135.85,7.36091]
[1765181373733,2.62264781,135.92,135.89,0.72]
[1765181373938,2.62264781,135.91,135.89,0.72]
[1765181376468,2.62264781,135.92,135.89,0.72]
[1765181378473,2.62264781,135.91,135.89,0.72]
[1765181378685,2.62264781,135.9,135.89,0.72]
[1765181379586,2.62264781,135.91,135.89,0.72]
[1765181380155,3.25264781,135.9,135.86,0.72]
[1765181380360,2.62264781,135.87,135.86,0.72]
[1765181388702,4.09869577,135.87,135.86,0.72]
[1765181389495,11.45814153,135.88,135.86,0.72]
[1765181396019,4.09869577,135.87,135.86,0.72]
[1765181396509,4.09869577,135.87,135.84,0.68]
[1765181396690,4.09869577,135.85,135.82,27.837839]
[1765181396884,4.09869577,135.84,135.83,0.68]
[1765181398797,4.09869577,135.85,135.83,0.68]
[1765181399098,4.09869577,135.84,135.83,0.68]
[1765181399408,11.45977348,135.85,135.83,0.68]
[1765181400402,4.09869577,135.85,135.83,0.68]
[1765181400591,11.45940855,135.86,135.83,0.68]
[1765181401805,4.09869577,135.85,135.83,0.68]
[1765181402008,4.09869577,135.84,135.83,0.68]
[1765181402676,11.46029765,135.84,135.83,0.68]
[1765181403401,4.09869577,135.84,135.83,0.68]
[1765181403906,11.45991883,135.85,135.83,0.68]
[1765181405300,104.8,135.89,135.83,0.68]
[1765181405301,11.45813056,135.88,135.83,8.0420586]
[1765181405799,11.45813056,135.88,135.84,0.67]
[1765181409006,4.09869577,135.86,135.84,0.67]
[1765181410301,7.36003241,135.87,135.84,0.67]
[1765181410302,4.09869577,135.87,135.84,0.67]
[1765181410611,4.09869577,135.94,135.87,8.80994492]
[1765181410809,4.09869577,135.93,135.88,4.09869577]
[1765181411009,4.09869577,135.93,135.89,0.67]
[1765181411304,11.45574202,135.93,135.89,0.67]
[1765181411692,4.09869577,135.9,135.88,22.09375115]
[1765181411898,4.09869577,135.89,135.86,0.67]
[1765181412106,4.09869577,135.87,135.86,0.67]
[1765181418405,4.09869577,135.88,135.86,0.67]
[1765181420025,4.09869577,135.87,135.85,7.36097519]
[1765181420196,4.09869577,135.87,135.85,8.03097519]
[1765181420519,4.09869577,135.87,135.86,0.67]
[1765181420721,4.09869577,135.88,135.86,0.67]
[1765181420913,4.09869577,135.89,135.86,0.67]
[1765181421312,4.72869577,135.9,135.86,8.03040951]
[1765181421716,4.72869577,135.9,135.87,0.66]
[1765181422018,11.45712204,135.9,135.87,0.66]
[1765181424317,4.09869577,135.9,135.87,8.0199401]
[1765181425122,4.09869577,135.9,135.88,0.66]
[1765181428837,11.45587146,135.93,135.88,8.01941373]
[1765181429007,4.09869577,135.93,135.89,8.80994492]
[1765181429207,4.09869577,135.93,135.89,9.46994492]
[1765181429511,4.09869577,135.93,135.9,0.66]
[1765181430227,4.09869577,135.93,135.9,8.01799229]
[1765181430620,4.09869577,135.93,135.91,0.66]
[1765181431230,4.09869577,135.94,135.91,8.01778534]
[1765181431633,4.09869577,135.94,135.92,0.66]
[1765181432513,108.89869577,135.95,135.92,8.01720973]
[1765181432904,108.89869577,135.95,135.93,0.66]
[1765181434518,4.09869577,135.95,135.93,0.66]
[1765181434934,4.09869577,135.96,135.93,0.66]
[1765181435310,4.09869577,135.96,135.93,8.01664695]
[1765181435718,4.09869577,135.96,135.94,0.66]
[1765181437416,4.09869577,135.96,135.93,0.66]
[1765181437630,4.09869577,135.97,135.94,0.66]
[1765181437846,11.55293446,135.98,135.94,0.66]
[1765181438013,4.09869577,135.97,135.94,0.66]
[1765181438344,4.09869577,135.96,135.94,0.66]
[1765181438510,4.72869577,135.97,135.94,0.66]
[1765181438925,4.09869577,135.97,135.94,0.66]
[1765181439335,4.09869577,135.97,135.94,8.01580299]
[1765181439634,11.55293446,135.98,135.94,8.01580299]
[1765181439839,11.55293446,135.98,135.95,0.66]
[1765181440025,12.18293446,135.98,135.95,0.66]
[1765181440444,4.09869577,135.97,135.95,0.66]
[1765181440833,11.55293446,135.98,135.95,0.66]
[1765181441137,0.1,135.98,135.95,8.01542238]
[1765181441508,0.1,135.98,135.96,0.66]
[1765181443652,4.82869577,135.98,135.95,8.01542238]
[1765181444643,4.19869577,135.98,135.95,8.01542238]
[1765181448245,4.19869577,135.98,135.96,0.66]
[1765181448744,2.71868079,135.98,135.96,0.66]
[1765181449545,0.1,135.98,135.96,0.66]
[1765181450246,0.1,135.98,135.96,8.01508827]
[1765181450753,0.1,135.98,135.97,0.66]
[1765181451548,0.1,135.98,135.96,7.35508827]
[1765181451747,0.1,135.98,135.97,0.7]
[1765181455258,0.1,135.98,135.97,8.0545635]
[1765181460454,0.1,135.98,135.97,16.86450842]
[1765181460653,0.1,135.98,135.97,19.48318921]
[1765181460823,0.1,135.98,135.97,35.79205321]
[1765181461239,0.1,135.98,135.97,19.48318921]
[1765181461439,0.1,136.0,135.99,8.80994492]
[1765181461636,0.1,136.0,135.99,11.42862571]
[1765181461838,0.1,136.0,135.99,12.14862571]
[1765181462632,0.1,136.0,135.99,19.50210758]
[1765181463856,0.1,136.0,135.99,16.88342679]
[1765181464557,0.1,136.0,135.99,8.07348187]
[1765181464791,0.1,136.0,135.99,16.88342679]
[1765181468067,0.1,136.0,135.99,19.50210758]
[1765181472235,0.1,136.0,135.99,16.88342679]
[1765181472439,0.1,136.0,135.99,19.50210758]
[1765181474475,0.1,136.0,135.99,16.88342679]
[1765181478460,0.1,136.0,135.99,19.50210758]
[1765181480552,0.1,136.0,135.99,22.44533998]
[1765181484568,0.73,136.0,135.99,19.10665919]
[1765181484968,0.73,136.0,135.98,23.66270765]
[1765181484969,3.34868079,136.0,135.98,23.66270765]
[1765181485153,3.34868079,136.0,135.98,26.60637324]
[1765181485971,0.73,136.0,135.98,26.60637324]
[1765181490583,0.73,136.0,135.98,2.94366559]
[1765181490881,3.34868079,136.0,135.97,8.01436717]
[1765181491081,3.34868079,136.0,135.97,18.08548623]
[1765181495283,2.61868079,135.98,135.95,8.80994492]
[1765181495660,3.24868079,135.98,135.95,16.26238319]
[1765181495972,3.24868079,135.98,135.95,23.61765292]
[1765181496279,7.45296465,136.0,135.95,11.42862571]
[1765181496280,0.1,136.0,135.95,11.42862571]
[1765181496588,0.1,136.0,135.97,7.35455882]
[1765181496760,0.73,136.0,135.97,7.35455882]
[1765181496960,0.73,136.0,135.97,8.01455882]
[1765181497160,3.34868079,136.0,135.97,10.07085983]
[1765181497658,0.63,135.99,135.96,14.80711035]
[1765181498375,0.63,135.99,135.96,15.46711035]
[1765181499590,0.63,135.99,135.96,14.80711035]
[1765181499761,0.63,135.99,135.96,15.46711035]
[1765181500779,3.24868079,135.99,135.96,15.46711035]
[1765181502378,0.63,135.99,135.96,15.46711035]
[1765181503894,3.24868079,135.99,135.96,15.46711035]
[1765181505183,2.61868079,135.99,135.96,14.80711035]
[1765181505387,0.63,135.98,135.96,14.80711035]
[1765181506186,0.63,135.99,135.96,15.46711035]
[1765181506391,10.70179635,136.0,135.97,0.66]
[1765181507189,10.70179635,136.0,135.96,14.80711035]
[1765181507190,0.63,135.99,135.96,15.46711035]
[1765181510701,0.63,135.99,135.96,8.01493131]
[1765181511004,12.17397052,136.0,135.97,12.20397052]
[1765181511303,12.17397052,136.0,135.97,0.66]
[1765181511507,0.63,135.99,135.96,8.03493131]
[1765181511690,0.63,135.99,135.96,26.51458136]
[1765181512091,12.17397052,136.0,135.97,8.0345166]
[1765181512388,0.63,135.99,135.97,18.89848712]
[1765181513588,4.82085496,136.0,135.97,19.57848712]
[1765181514382,4.82085496,136.0,135.97,8.0345166]
[1765181516600,4.09085496,135.99,135.97,8.0345166]
[1765181516806,4.72085496,135.99,135.97,7.3545166]
[1765181517304,4.72085496,135.99,135.97,8.0345166]
[1765181518409,4.09085496,135.99,135.97,8.0345166]
[1765181518587,4.82085496,136.0,135.97,8.0345166]
[1765181520112,0.1,136.0,135.98,0.68]
[1765181520610,0.1,136.0,135.97,7.3545166]
[1765181520784,0.73,136.0,135.97,8.0345166]
[1765181521199,0.1,136.0,135.99,8.80994492]
[1765181521405,0.1,136.0,135.99,12.90079988]
[1765181521606,0.1,136.0,135.99,16.52424886]
[1765181523109,0.1,136.0,135.99,2.94344898]
[1765181523506,0.1,136.0,135.98,0.68]
[1765181523813,0.1,136.0,135.98,4.87085496]
[1765181524009,0.1,136.0,135.98,12.22454896]
[1765181525712,4.19085496,136.0,135.98,12.22454896]
[1765181525917,0.1,136.0,135.98,12.22454896]
[1765181526518,0.1,136.0,135.98,11.54454896]
[1765181526814,4.82085496,136.0,135.97,16.988864]
[1765181527118,4.82085496,136.0,135.97,36.51658967]
[1765181527301,4.19085496,136.0,135.97,36.51658967]
[1765181528109,4.19085496,136.0,135.98,0.68]
[1765181528618,0.1,136.0,135.98,0.68]
[1765181535402,0.1,136.0,135.98,8.03395448]
[1765181535606,0.1,136.0,135.99,12.90079988]
[1765181535803,0.1,136.01,136.0,8.80994492]
[1765181536129,0.1,136.01,136.0,13.58079988]
[1765181536517,0.1,136.01,136.0,16.52381573]
[1765181536723,0.1,136.01,136.0,32.83267973]
[1765181536909,0.1,136.01,136.0,40.1856209]
[1765181554652,0.1,136.01,136.0,23.8767569]
[1765181568781,0.1,136.01,136.0,19.78590194]
[1765181568949,0.1,136.01,136.0,23.8767569]
[1765181569565,0.1,136.01,136.0,19.78590194]
[1765181569855,0.1,136.01,136.0,19.10590194]
[1765181570074,0.76,136.01,136.0,19.10590194]
[1765181570676,0.76,136.01,136.0,21.72234086]
[1765181571182,0.1,136.01,136.0,21.72234086]
[1765181582370,0.1,136.01,136.0,22.44234086]
[1765181595476,0.1,136.01,136.0,21.72234086]
[1765181595972,0.1,136.01,136.0,19.10590194]
[1765181595973,0.79,136.01,136.0,19.10590194]
[1765181596387,0.1,136.01,136.0,19.10590194]
[1765181596701,0.1,136.01,136.0,21.72234086]
[1765181598999,0.1,136.01,136.0,22.41234086]
[1765181600997,0.1,136.01,136.0,21.72234086]
[1765181601198,0.1,136.01,136.0,22.40234086]
[1765181601585,0.1,136.01,136.0,21.72234086]
[1765181601984,0.1,136.01,136.0,22.40234086]
[1765181603114,8.18,136.01,136.0,22.40234086]
[1765181604886,8.18,136.01,136.0,21.72234086]
[1765181605408,8.9,136.01,136.0,19.10590194]
[1765181605922,8.18,136.01,136.0,19.10590194]
[1765181608522,8.18,136.01,136.0,21.72234086]
[1765181610118,0.1,136.01,136.0,21.72234086]
[1765181610320,8.18,136.01,136.0,21.72234086]
[1765181613119,0.1,136.01,136.0,21.72234086]
[1765181613424,8.18,136.01,136.0,21.72234086]
[1765181616130,8.18,136.01,136.0,19.10590194]
[1765181617124,8.18,136.01,136.0,22.40234086]
[1765181618025,8.18,136.01,136.0,39.44946182]
[1765181618026,0.1,136.01,136.0,39.44946182]
[1765181618219,0.1,136.02,136.0,38.82316254]
[1765181618529,0.1,136.02,136.01,25.77492666]
[1765181618926,0.1,136.02,136.01,33.95492666]
[1765181619437,0.1,136.02,136.01,41.30732721]
[1765181620231,0.1,136.02,136.01,43.26764839]
[1765181621134,0.1,136.02,136.01,40.65120947]
[1765181621708,0.1,136.02,136.01,41.33120947]
[1765181622552,0.1,136.02,136.01,43.94764839]
[1765181622831,0.1,136.02,136.01,43.26764839]
[1765181624040,0.82,136.02,136.01,24.488864]
[1765181624830,0.82,136.02,136.01,8.18]
[1765181629947,0.1,136.02,136.01,26.95878439]
[1765181630127,8.18,136.02,136.01,26.95878439]
[1765181630337,8.18,136.02,136.01,24.34234547]
[1765181630543,8.18,136.02,136.01,25.02234547]
[1765181630849,0.1,136.02,136.01,27.63878439]
[1765181631050,8.18,136.02,136.01,25.02234547]
[1765181631223,8.18,136.02,136.01,24.34234547]
[1765181634123,8.18,136.02,136.01,29.10982545]
[1765181634828,8.18,136.02,136.01,35.27944919]
[1765181635537,0.1,136.02,136.01,35.27944919]
[1765181635743,8.18,136.02,136.01,35.27944919]
[1765181640568,8.18,136.02,136.01,35.26561595]
[1765181644353,8.18,136.02,136.01,29.10982545]
[1765181649250,8.18,136.02,136.01,35.26561595]
[1765181651081,8.18,136.02,136.01,95.39730543]
[1765181651082,1e-08,136.02,136.01,95.39730543]
[1765181651263,0.1,136.04,136.01,95.39730543]
[1765181651264,0.1,136.04,136.02,17.0804028]
[1765181651575,0.1,136.04,136.03,12.8974249]
[1765181651749,0.1,136.04,136.03,13.5774249]
[1765181651946,0.1,136.04,136.03,16.51914212]
[1765181652256,0.1,136.05,136.04,8.80994492]
[1765181652450,0.1,136.05,136.04,19.71843598]
[1765181652856,0.1,136.05,136.04,27.89843598]
[1765181653273,0.1,136.05,136.04,21.7574249]
[1765181654284,0.1,136.05,136.04,29.10820408]
[1765181655183,1e-08,136.05,136.04,43.51967304]
[1765181655781,0.1,136.09,136.07,8.80994492]
[1765181655992,0.1,136.09,136.08,29.2062889]
[1765181656190,0.1,136.09,136.08,12.8974249]
[1765181656429,0.1,136.09,136.08,20.24604335]
[1765181656764,0.1,136.09,136.08,28.32604335]
[1765181657295,1e-08,136.09,136.08,38.54393533]
[1765181657483,1e-08,136.09,136.08,46.9086579]
[1765181658485,1e-08,136.09,136.08,40.7782459]
[1765181661409,1e-08,136.09,136.08,36.69076592]
[1765181662795,1e-08,136.09,136.08,40.7782459]
[1765181664717,0.68,136.13,136.12,25.11880892]
[1765181664899,0.68,136.13,136.12,29.2062889]
[1765181665418,0.68,136.13,136.12,32.1462764]
[1765181665715,0.68,136.13,136.12,39.4927354]
[1765181692755,0.68,136.13,136.12,38.01664344]
[1765181696768,3.29138802,136.13,136.07,6.130412]
[1765181697065,2.61138802,136.1,136.07,7.34904286]
[1765181697267,8.08,136.09,136.07,8.80994492]
[1765181697470,8.67,136.09,136.07,8.80994492]
[1765181697776,0.59,136.08,136.06,7.34969866]
[1765181697959,0.59,136.08,136.07,25.11880892]
[1765181698668,0.59,136.08,136.07,32.46796744]
[1765181698974,0.59,136.08,136.07,16.15910344]
[1765181699770,0.59,136.08,136.07,32.46796744]
[1765181700850,8.08,136.08,136.07,32.46796744]
[1765181701354,0.59,136.13,136.1,16.308864]
[1765181701659,8.08,136.12,136.11,27.73019694]
[1765181701853,8.08,136.12,136.11,28.42019694]
[1765181702255,0.1,136.14,136.11,28.42019694]
[1765181702482,8.18,136.14,136.13,18.76725228]
[1765181706387,8.18,136.14,136.13,19.42725228]
[1765181706894,8.18,136.14,136.13,18.76725228]
[1765181707673,8.18,136.14,136.13,19.42725228]
[1765181709893,0.1,136.14,136.13,19.42725228]
[1765181710075,0.1,136.14,136.13,25.5691536]
[1765181711590,0.1,136.14,136.13,19.42725228]
[1765181711804,0.1,136.14,136.13,18.76725228]
[1765181713200,0.1,136.14,136.13,35.73611628]
[1765181715925,8.18,136.14,136.13,35.73611628]
[1765181717735,0.1,136.14,136.13,19.42725228]
[1765181717922,0.1,136.14,136.13,33.7491536]
[1765181721507,1e-08,136.14,136.13,42.11387617]
[1765181722625,1e-08,136.14,136.13,33.93387617]
[1765181725213,1e-08,136.15,136.14,9.51994492]
[1765181725413,0.59,136.22,136.18,8.80994492]
[1765181725603,8.08,136.2,136.18,9.51994492]
[1765181725800,8.08,136.2,136.18,8.80994492]
[1765181726223,0.59,136.21,136.19,7.34268301]
[1765181726523,0.59,136.21,136.2,8.80994492]
[1765181727303,0.59,136.21,136.19,7.34268301]
[1765181731236,0.59,136.21,136.18,7.34307834]
[1765181731429,2.61138802,136.2,136.17,23.65247285]
[1765181731940,0.59,136.19,136.18,7.3432222]
[1765181733139,10.69138802,136.22,136.18,7.3432222]
[1765181733317,0.59,136.2,136.18,7.3432222]
[1765181735847,0.59,136.2,136.19,8.80994492]
[1765181736146,8.67,136.2,136.19,8.80994492]
[1765181736746,8.67,136.2,136.19,16.15262793]
[1765181738645,8.08,136.2,136.19,37.83072349]
[1765181739344,8.08,136.2,136.19,37.12072349]
[1765181741843,8.08,136.2,136.19,37.83072349]
[1765181743429,8.08,136.2,136.19,54.13958749]
[1765181743751,0.1,136.23,136.22,25.11880892]
[1765181743950,0.1,136.23,136.22,27.73019694]
[1765181744126,0.1,136.23,136.22,28.44019694]
[1765181745634,0.1,136.23,136.22,35.78126286]
[1765181748052,0.1,136.23,136.22,32.45987484]
[1765181750639,0.1,136.23,136.22,35.07126286]
[1765181751251,0.1,136.23,136.22,35.75126286]
[1765181752055,0.1,136.23,136.22,35.07126286]
[1765181753245,0.1,136.23,136.22,35.75126286]
[1765181753449,0.1,136.23,136.22,35.07126286]
[1765181753652,0.1,136.23,136.22,35.75126286]
[1765181754752,0.1,136.23,136.22,36.53446833]
[1765181755139,0.1,136.23,136.22,37.21446833]
[1765181755444,0.1,136.23,136.22,36.53446833]
[1765181756330,0.1,136.23,136.22,37.21446833]
[1765181756751,0.1,136.23,136.22,36.53446833]
[1765181757132,0.1,136.23,136.22,37.21446833]
[1765181757657,0.1,136.23,136.22,36.53446833]
[1765181758539,0.1,136.23,136.22,37.21446833]
[1765181758842,0.1,136.23,136.22,36.53446833]
[1765181759043,0.1,136.23,136.22,37.21446833]
[1765181759249,0.1,136.23,136.22,36.53446833]
[1765181759855,0.1,136.23,136.22,37.21446833]
[1765181761262,0.1,136.23,136.22,33.13987484]
[1765181761570,0.1,136.23,136.22,37.21446833]
[1765181763544,0.1,136.23,136.22,41.28906182]
[1765181764147,0.1,136.23,136.22,37.21446833]
[1765181764346,0.1,136.23,136.22,41.28906182]
[1765181764547,0.1,136.23,136.22,37.21446833]
[1765181766365,0.1,136.23,136.22,41.28906182]
[1765181767866,0.1,136.23,136.22,37.21446833]
[1765181768564,1e-08,136.23,136.22,37.21446833]
[1765181768744,0.1,136.27,136.26,25.11880892]
[1765181768949,0.1,136.27,136.26,29.19340241]
[1765181769249,0.1,136.27,136.26,29.89340241]
[1765181769854,1e-08,136.27,136.26,29.89340241]
[1765181770273,1e-08,136.28,136.27,9.50994492]
[1765181770575,1e-08,136.28,136.27,13.58453841]
[1765181770879,1e-08,136.28,136.27,20.92291075]
[1765181772456,1e-08,136.28,136.27,29.28763332]
[1765181772649,1e-08,136.28,136.27,51.81810664]
[1765181772849,1e-08,136.28,136.27,29.28763332]
[1765181773660,1e-08,136.28,136.27,33.36222681]
[1765181773847,1e-08,136.28,136.27,29.28763332]
[1765181775068,1e-08,136.28,136.27,51.59566501]
[1765181776367,1e-08,136.28,136.27,117.8702585]
[1765181776596,1e-08,136.28,136.27,113.79566501]
[1765181777354,1e-08,136.28,136.27,91.48763332]
[1765181777554,1e-08,136.28,136.27,83.12291075]
[1765181778055,1e-08,136.28,136.27,20.22291075]
[1765181778460,1e-08,136.28,136.27,20.92291075]
[1765181786490,1e-08,136.28,136.27,20.89291075]
[1765181787678,1e-08,136.28,136.27,29.25763332]
[1765181789392,314.39999999,136.41,136.27,29.25763332]
[1765181789393,0.59,136.35,136.31,8.80994492]
[1765181789602,8.08,136.34,136.33,20.38345749]
[1765181789977,8.67,136.34,136.33,20.38345749]
[1765181790176,8.67,136.34,136.33,16.308864]
[1765181790887,8.67,136.34,136.33,23.64400666]
[1765181791671,8.67,136.34,136.32,4.07459349]
[1765181791672,8.67,136.34,136.32,16.308864]
[1765181791872,8.08,136.34,136.32,29.19340241]
[1765181792171,8.08,136.34,136.33,7.33514266]
[1765181792882,8.67,136.34,136.33,7.33514266]
[1765181794388,8.67,136.34,136.32,23.64439205]
[1765181794590,0.59,136.33,136.32,23.64439205]
[1765181796196,8.67,136.34,136.32,23.64439205]
[1765181796403,0.59,136.33,136.32,23.64439205]
[1765181796897,0.59,136.33,136.29,22.41714227]
[1765181797095,0.59,136.33,136.29,38.72600627]
[1765181797985,0.59,136.33,136.3,7.33643603]
[1765181798690,0.59,136.33,136.3,12.88453841]
[1765181798897,0.59,136.33,136.31,7.33621891]
[1765181799499,8.08,136.34,136.31,7.33621891]
[1765181799707,0.59,136.33,136.31,7.33621891]
[1765181802007,8.08,136.34,136.31,7.33621891]
[1765181802187,8.67,136.34,136.31,12.0808124]
[1765181802791,8.08,136.34,136.31,7.33621891]
[1765181803003,0.59,136.33,136.31,7.33621891]
[1765181804018,8.08,136.34,136.32,29.86340241]
[1765181804396,0.69,136.37,136.33,4.74459349]
[1765181804714,0.69,136.37,136.33,8.80994492]
[1765181804715,8.08,136.34,136.33,8.80994492]
[1765181805718,8.08,136.34,136.33,16.14508758]
[1765181807620,8.08,136.34,136.33,20.21968107]
[1765181809621,8.08,136.34,136.33,20.88968107]
[1765181810919,8.08,136.34,136.33,16.14508758]
[1765181813832,8.08,136.34,136.33,20.21968107]
[1765181814714,8.08,136.34,136.33,18.74865317]
[1765181815138,8.08,136.34,136.33,16.14508758]
[1765181815439,8.67,136.34,136.33,7.33514266]
[1765181815635,8.08,136.34,136.33,7.33514266]
[1765181815834,8.67,136.34,136.32,23.64446889]
[1765181816029,0.59,136.33,136.32,16.308864]
[1765181816739,0.59,136.33,136.32,23.64454475]
[1765181818339,8.08,136.34,136.32,23.64454475]
[1765181818528,8.67,136.34,136.32,23.64454475]
[1765181819151,8.08,136.34,136.32,23.64454475]
[1765181819642,0.59,136.33,136.32,7.33568075]
[1765181820534,8.08,136.34,136.32,7.33568075]
[1765181820734,8.67,136.34,136.32,7.33568075]
[1765181821248,0.59,136.33,136.31,8.80994492]
[1765181821450,3.19356559,136.33,136.29,7.33691566]
[1765181821746,2.60356559,136.32,136.29,16.308864]
[1765181821957,3.19356559,136.32,136.29,16.308864]
[1765181822127,0.59,136.31,136.29,16.308864]
[1765181822325,8.06,136.3,136.29,16.308864]
[1765181822717,11.25356559,136.3,136.25,14.92119508]
[1765181822922,3.19356559,136.29,136.25,16.14920788]
[1765181823139,3.19356559,136.29,136.26,16.308864]
[1765181823337,3.19356559,136.29,136.25,16.14920788]
[1765181823338,0.59,136.28,136.25,16.14920788]
[1765181823537,3.19356559,136.28,136.25,16.14920788]
[1765181823755,3.19356559,136.28,136.24,7.33956608]
[1765181823927,0.59,136.28,136.25,23.64830795]
[1765181824121,0.59,136.27,136.25,7.33944395]
[1765181824432,8.08,136.26,136.24,32.45875154]
[1765181824937,8.08,136.26,136.25,7.33944954]
[1765181825472,8.67,136.26,136.23,16.15029162]
[1765181825756,8.67,136.26,136.23,32.45915562]
[1765181825959,2.60356559,136.24,136.21,7.34142925]
[1765181826159,0.59,136.25,136.21,8.04142925]
[1765181826344,0.59,136.24,136.2,18.75549088]
[1765181826552,3.19356559,136.24,136.2,16.85192529]